bitfinex/quotes_BTCUSD_20240819
["timestamp","ask_amount","ask_price","bid_price","bid_amount"]
[1724060889149,0.012,58501.0,58500.0,0.69959605]
[1724060889408,0.012,58501.0,58500.0,1.98531059]
[1724060889630,0.012,58501.0,58500.0,2.45119059]
[1724060889831,0.012,58509.0,58508.0,0.995582]
[1724060890069,0.04976978,58517.0,58516.0,0.854465]
[1724060890271,0.04976978,58517.0,58516.0,1.81060554]
[1724060890487,0.341658,58538.0,58520.0,0.341762]
[1724060890695,0.59347509,58539.0,58523.0,0.341743]
[1724060890696,0.04922094,58528.0,58523.0,0.341743]
[1724060890899,0.04922094,58528.0,58527.0,0.170861]
[1724060891113,0.0236525,58537.0,58516.0,0.0762]
[1724060891324,0.59347509,58539.0,58516.0,0.0762]
[1724060891325,0.011,58517.0,58516.0,0.0762]
[1724060891539,0.011,58517.0,58516.0,0.247092]
[1724060891742,0.170866,58526.0,58516.0,0.0762]
[1724060891962,0.02482031,58525.0,58517.0,0.0247095]
[1724060892367,0.02482031,58525.0,58516.0,0.0762]
[1724060892577,0.05221119,58528.0,58516.0,0.0762]
[1724060892578,0.001,58517.0,58516.0,0.258093]
[1724060892802,0.001,58517.0,58516.0,0.599879]
[1724060893002,0.68261509,58534.0,58523.0,0.17087]
[1724060893213,0.1,58533.0,58518.0,0.341774]
[1724060893421,0.01076967,58533.0,58519.0,0.05915285]
[1724060893622,0.01076967,58533.0,58527.0,0.0605]
[1724060893827,0.01076967,58533.0,58532.0,0.170846]
[1724060894248,0.001,58558.0,58531.0,0.0753]
[1724060894454,0.2,58567.0,58531.0,0.0753]
[1724060894455,0.04906339,58546.0,58532.0,0.53815454]
[1724060894654,0.04906339,58546.0,58545.0,0.170808]
[1724060894856,0.02190135,58553.0,58540.0,0.3666]
[1724060895078,0.02190135,58553.0,58533.0,0.3666]
[1724060895079,0.1708,58548.0,58533.0,0.3666]
[1724060895278,0.0827,58544.0,58525.0,0.0768]
[1724060895486,0.341646,58541.0,58525.0,0.0768]
[1724060895695,0.02292276,58540.0,58525.0,0.0768]
[1724060895955,0.02292276,58540.0,58520.0,0.341758]
[1724060895956,0.03470708,58540.0,58520.0,0.0631]
[1724060896153,0.01659017,58539.0,58522.0,0.341749]
[1724060896363,0.01659017,58539.0,58527.0,1.001]
[1724060896364,0.170858,58528.0,58527.0,1.001]
[1724060896587,0.63263124,58528.0,58527.0,1.001]
[1724060896800,1.54931592,58528.0,58527.0,1.001]
[1724060897018,1.56324079,58528.0,58527.0,1.001]
[1724060897425,1.56124079,58528.0,58527.0,1.001]
[1724060897631,1.54815499,58528.0,58527.0,1.0]
[1724060897856,1.88987099,58528.0,58527.0,1.0]
[1724060898065,1.54815499,58528.0,58527.0,1.001]
[1724060898270,1.60010147,58528.0,58527.0,1.0]
[1724060898477,1.54407499,58528.0,58527.0,1.0]
[1724060898692,1.54407499,58528.0,58527.0,1.001]
[1724060898693,1.19335899,58528.0,58527.0,1.001]
[1724060898903,1.19235899,58528.0,58527.0,1.001]
[1724060899115,1.17835899,58528.0,58527.0,1.0]
[1724060899329,0.83664299,58528.0,58527.0,1.001]
[1724060899566,0.83664299,58528.0,58527.0,0.87107073]
[1724060899567,1.68386138,58528.0,58527.0,0.87107073]
[1724060900193,1.54407499,58528.0,58527.0,0.87107073]
[1724060900613,1.54807499,58528.0,58527.0,0.87007073]
[1724060901042,1.54806718,58528.0,58527.0,0.87107073]
[1724060901460,1.54407114,58528.0,58527.0,0.87107073]
[1724060901685,1.55807114,58528.0,58527.0,0.87207073]
[1724060901901,1.52107114,58528.0,58527.0,0.87107073]
[1724060902345,1.56007114,58528.0,58527.0,0.87207073]
[1724060902552,1.71827554,58528.0,58527.0,0.87107073]
[1724060902761,1.70427554,58528.0,58527.0,0.87107073]
[1724060902975,1.71427554,58528.0,58527.0,0.87107073]
[1724060903185,1.71427554,58528.0,58527.0,0.87007073]
[1724060903186,1.55806843,58528.0,58527.0,0.87007073]
[1724060903456,1.56806843,58528.0,58527.0,0.87107073]
[1724060903663,1.55906843,58528.0,58527.0,0.87207073]
[1724060903874,1.70497527,58528.0,58527.0,0.87107073]
[1724060904078,1.54906843,58528.0,58527.0,0.87107073]
[1724060904290,1.55906843,58528.0,58527.0,0.87207073]
[1724060904733,1.55806843,58528.0,58527.0,0.87207073]
[1724060904965,1.12525243,58528.0,58527.0,0.87107073]
[1724060905156,0.75139031,58528.0,58527.0,0.87107073]
[1724060905354,0.757071,58528.0,58527.0,0.87107073]
[1724060905585,0.61844253,58528.0,58527.0,0.87107073]
[1724060905795,0.96015853,58528.0,58527.0,0.87107073]
[1724060906005,0.60444253,58528.0,58527.0,0.87107073]
[1724060906207,0.60444253,58528.0,58527.0,0.87007073]
[1724060906208,0.95015853,58528.0,58527.0,0.87007073]
[1724060906419,0.96415853,58528.0,58527.0,0.87107073]
[1724060906627,1.05015853,58528.0,58527.0,0.87107073]
[1724060907040,0.69444253,58528.0,58527.0,0.87007073]
[1724060907241,0.70644253,58528.0,58527.0,0.87107073]
[1724060907858,1.15297208,58528.0,58527.0,0.87107073]
[1724060908272,1.04815853,58528.0,58527.0,0.87107073]
[1724060908477,1.06215853,58528.0,58527.0,0.87107073]
[1724060908885,1.40387453,58528.0,58527.0,0.87107073]
[1724060909296,1.121687,58528.0,58527.0,0.87107073]
[1724060909499,1.06215853,58528.0,58527.0,0.87107073]
[1724060910563,1.06215853,58528.0,58527.0,0.87189273]
[1724060911231,1.16837438,58528.0,58527.0,0.87189273]
[1724060911442,1.40387453,58528.0,58527.0,0.87189273]
[1724060911860,1.40487453,58528.0,58527.0,0.87189273]
[1724060912095,1.94169053,58528.0,58527.0,0.87189273]
[1724060912347,1.94169053,58528.0,58527.0,0.85656648]
[1724060912562,0.512793,58503.0,58502.0,0.0783]
[1724060912777,0.170936,58502.0,58500.0,0.0624]
[1724060913020,0.02774128,58502.0,58497.0,0.0783]
[1724060913262,0.02774128,58502.0,58495.0,0.06281159]
[1724060913263,0.01658325,58501.0,58495.0,0.06281159]
[1724060913487,0.08553559,58501.0,58495.0,0.06281159]
[1724060913688,0.170947,58498.0,58495.0,0.06281159]
[1724060913894,0.046144,58497.0,58495.0,0.00041159]
[1724060914101,0.01658354,58496.0,58495.0,0.00041159]
[1724060914523,0.02589286,58496.0,58495.0,0.00041159]
[1724060915210,0.02589286,58496.0,58495.0,0.02879799]
[1724060915431,0.02589286,58496.0,58495.0,0.07871159]
[1724060915663,0.02589286,58496.0,58495.0,0.24966559]
[1724060915883,0.02589286,58496.0,58495.0,0.59699299]
[1724060916096,0.02589286,58496.0,58495.0,0.08071159]
[1724060916312,0.18753454,58496.0,58495.0,0.00241159]
[1724060916533,0.01658354,58496.0,58495.0,0.00241159]
[1724060916742,0.02585417,58496.0,58495.0,0.00241159]
[1724060917215,0.05541463,58496.0,58495.0,0.00041159]
[1724060917411,0.05541463,58496.0,58490.0,0.1391]
[1724060917412,0.08536441,58496.0,58490.0,0.1391]
[1724060917617,0.446915,58495.0,58490.0,0.1391]
[1724060917821,0.05951147,58493.0,58490.0,0.15301]
[1724060918027,0.01658231,58492.0,58490.0,0.15301]
[1724060918250,0.01658231,58491.0,58490.0,0.15301]
[1724060918914,0.02585294,58491.0,58490.0,0.1391]
[1724060919577,0.01858231,58491.0,58490.0,0.1391]
[1724060919767,0.01858279,58491.0,58490.0,0.1391]
[1724060919984,0.01858279,58491.0,58490.0,1.16549954]
[1724060920207,0.01858279,58491.0,58490.0,1.31658697]
[1724060920420,0.002,58491.0,58490.0,1.66152497]
[1724060920639,0.002,58491.0,58490.0,0.97464897]
[1724060920860,0.002,58491.0,58490.0,0.97564897]
[1724060921104,0.02955909,58504.0,58493.0,0.40762]
[1724060921304,0.02955909,58504.0,58497.0,0.170948]
[1724060921508,0.00923891,58503.0,58497.0,0.34250254]
[1724060921723,0.00923891,58503.0,58502.0,0.170934]
[1724060921926,0.00923891,58503.0,58502.0,0.14113625]
[1724060922130,0.17092,58507.0,58502.0,0.0647]
[1724060922341,0.00923891,58503.0,58502.0,0.0647]
[1724060922592,0.004,58504.0,58502.0,0.07917]
[1724060922777,0.004,58504.0,58502.0,0.591972]
[1724060922778,0.02582356,58503.0,58502.0,0.591972]
[1724060922991,0.01658465,58503.0,58502.0,0.591972]
[1724060923192,0.01658465,58503.0,58502.0,0.07917]
[1724060923603,0.01658465,58503.0,58502.0,0.591972]
[1724060923820,0.001,58504.0,58503.0,0.170931]
[1724060924026,0.05951904,58510.0,58503.0,0.0671972]
[1724060924234,0.05951904,58510.0,58506.0,0.170922]
[1724060924437,0.001,58507.0,58504.0,0.170927]
[1724060924637,0.001,58507.0,58504.0,0.24484382]
[1724060924850,0.00923891,58506.0,58505.0,0.170925]
[1724060925262,0.06151904,58510.0,58509.0,0.170913]
[1724060925471,0.06151904,58510.0,58509.0,0.54150904]
[1724060925680,0.06151904,58510.0,58509.0,0.5380913]
[1724060925681,0.06910965,58510.0,58509.0,0.5380913]
[1724060925883,0.05951904,58510.0,58509.0,1.13457284]
[1724060926091,0.04988545,58524.0,58509.0,1.19477284]
[1724060926300,0.04988545,58524.0,58510.0,0.6043136]
[1724060926537,0.00961703,58523.0,58510.0,0.6043136]
[1724060926783,0.00961703,58523.0,58514.0,0.170897]
[1724060926995,0.00961703,58523.0,58514.0,0.26270107]
[1724060927121,0.02533133,58526.0,58516.0,0.170893]
[1724060927343,0.17088,58521.0,58510.0,0.25907839]
[1724060927597,0.0502357,58528.0,58510.0,0.17155454]
[1724060927598,0.02525834,58526.0,58510.0,0.17155454]
[1724060927775,0.001,58523.0,58514.0,0.170898]
[1724060928141,0.02625214,58522.0,58516.0,0.170892]
[1724060928341,0.01658781,58521.0,58516.0,0.170892]
[1724060928751,0.02625214,58520.0,58510.0,0.51337054]
[1724060928972,0.01658781,58520.0,58510.0,0.34246354]
[1724060929078,0.001,58521.0,58510.0,0.34246354]
[1724060929281,0.02622584,58520.0,58511.0,0.170907]
[1724060929481,0.01658912,58519.0,58516.0,0.003]
[1724060929747,0.01658912,58518.0,58509.0,0.1433]
[1724060929953,0.01658912,58518.0,58498.0,0.001]
[1724060929954,0.15718912,58517.0,58498.0,0.079]
[1724060930176,0.341821,58511.0,58498.0,0.079]
[1724060930378,0.24430186,58510.0,58498.0,0.079]
[1724060930590,0.01658912,58509.0,58498.0,0.079]
[1724060930709,0.170923,58506.0,58498.0,0.079]
[1724060930916,0.02616736,58505.0,58498.0,0.09345]
[1724060931116,0.01658912,58504.0,58498.0,0.09345]
[1724060931499,0.00952996,58504.0,58498.0,0.09345]
[1724060931832,0.009,58510.0,58498.0,0.09786829]
[1724060932172,0.01658603,58509.0,58503.0,0.170931]
[1724060932360,0.65457509,58507.0,58493.0,0.341919]
[1724060932560,0.65457509,58507.0,58490.0,0.000823]
[1724060932561,0.07403276,58506.0,58490.0,0.000823]
[1724060932764,0.01658603,58505.0,58490.0,0.17237754]
[1724060933107,0.01658603,58504.0,58498.0,0.001]
[1724060933312,0.01658603,58503.0,58498.0,0.001]
[1724060933509,0.01658603,58502.0,58498.0,0.001]
[1724060933715,0.01658603,58501.0,58498.0,0.2233311]
[1724060933970,0.01658603,58501.0,58498.0,0.0523861]
[1724060933971,0.00930163,58501.0,58498.0,0.0523861]
[1724060934177,0.05969334,58510.0,58499.0,0.00341829]
[1724060934178,0.08925685,58510.0,58499.0,0.00341829]
[1724060934299,0.00930163,58500.0,58498.0,0.001]
[1724060934499,0.01658454,58499.0,58491.0,0.06517225]
[1724060934704,0.341854,58505.0,58491.0,0.06517225]
[1724060934705,0.02588617,58498.0,58491.0,0.06517225]
[1724060934899,0.01658454,58497.0,58492.0,0.170962]
[1724060935133,0.04929238,58504.0,58495.0,0.170954]
[1724060935332,0.01658455,58503.0,58494.0,0.170957]
[1724060935532,0.01658455,58502.0,58492.0,0.25974698]
[1724060935779,0.01658455,58502.0,58497.0,0.170946]
[1724060936016,0.00930163,58501.0,58498.0,0.34249954]
[1724060936220,0.04929238,58504.0,58498.0,0.34249954]
[1724060936555,0.02588631,58503.0,58495.0,0.170954]
[1724060936760,0.001,58501.0,58495.0,0.51346254]
[1724060936963,0.01658468,58500.0,58495.0,0.17155454]
[1724060937177,0.01658468,58500.0,58498.0,0.000823]
[1724060937373,0.04929238,58504.0,58498.0,0.000823]
[1724060937581,0.04929238,58504.0,58501.0,0.170936]
[1724060937754,0.04929238,58504.0,58499.0,0.17435828]
[1724060937755,0.02588677,58503.0,58499.0,0.17435828]
[1724060937989,0.00930163,58503.0,58499.0,0.24835701]
[1724060938194,0.00930163,58503.0,58502.0,0.170933]
[1724060938195,0.001,58503.0,58502.0,0.170933]
[1724060938397,0.001,58503.0,58502.0,0.17435101]
[1724060938605,0.001,58503.0,58502.0,1.09344155]
[1724060938847,0.001,58503.0,58502.0,1.43530955]
[1724060939048,0.04947192,58511.0,58510.0,0.512731]
[1724060939260,0.05070409,58522.0,58510.0,0.24785454]
[1724060939465,0.01658913,58521.0,58515.0,0.170895]
[1724060939674,0.01658913,58520.0,58511.0,0.19643999]
[1724060939885,0.01658913,58520.0,58516.0,0.170892]
[1724060940301,0.04975107,58522.0,58516.0,0.341785]
[1724060940508,0.04975107,58522.0,58517.0,0.0034171]
[1724060940777,0.02591273,58521.0,58517.0,0.0034171]
[1724060940960,0.02591306,58521.0,58513.0,0.17155454]
[1724060941190,0.05070409,58525.0,58512.0,0.0619]
[1724060941433,0.02591191,58520.0,58505.0,0.1472]
[1724060941651,0.170895,58516.0,58506.0,0.17155454]
[1724060941858,0.05070409,58515.0,58500.0,0.1472]
[1724060942065,0.06729256,58514.0,58501.0,0.17155454]
[1724060942283,0.06729256,58514.0,58512.0,0.001]
[1724060942284,0.06729256,58513.0,58512.0,0.001]
[1724060942492,0.06739757,58513.0,58512.0,0.001]
[1724060942706,0.01658847,58513.0,58509.0,0.170912]
[1724060942925,0.009501,58513.0,58509.0,0.17155454]
[1724060943125,0.009501,58513.0,58506.0,0.341843]
[1724060943329,0.05081118,58515.0,58510.0,0.17091]
[1724060943574,0.05081118,58515.0,58506.0,0.55379761]
[1724060943575,0.00960118,58512.0,58508.0,0.170915]
[1724060943806,0.00960118,58512.0,58478.0,0.17899715]
[1724060943807,0.001,58481.0,58478.0,0.17899715]
[1724060944009,0.97152,58478.0,58477.0,0.78412858]
[1724060944224,1.82454851,58478.0,58477.0,0.78412858]
[1724060944439,1.77547927,58478.0,58477.0,0.78412858]
[1724060944659,2.23172907,58478.0,58477.0,0.78412858]
[1724060944871,1.81624005,58478.0,58477.0,0.78412858]
[1724060945077,1.81524005,58478.0,58477.0,0.78412858]
[1724060945522,1.82124005,58478.0,58477.0,0.78412858]
[1724060945737,1.88879905,58478.0,58477.0,0.78412858]
[1724060945942,1.83524005,58478.0,58477.0,0.78412858]
[1724060946157,1.82124005,58478.0,58477.0,0.78412858]
[1724060946799,1.82724005,58478.0,58477.0,0.78412858]
[1724060947010,1.49123205,58478.0,58477.0,0.78412858]
[1724060947216,1.14585973,58478.0,58477.0,0.78412858]
[1724060947442,1.86734873,58478.0,58477.0,0.78412858]
[1724060947650,1.215741,58478.0,58477.0,0.78412858]
[1724060947852,1.203741,58478.0,58477.0,0.78412858]
[1724060948060,1.33187761,58478.0,58477.0,0.78412858]
[1724060948267,1.59799966,58478.0,58477.0,0.78412858]
[1724060948468,1.86336637,58478.0,58477.0,0.78412858]
[1724060948681,1.76070559,58478.0,58477.0,0.78412858]
[1724060948892,2.26493211,58478.0,58477.0,0.71752858]
[1724060949102,2.25093211,58478.0,58477.0,0.71835158]
[1724060949344,2.78049465,58478.0,58477.0,0.71835158]
[1724060949548,2.43448665,58478.0,58477.0,0.71835158]
[1724060949756,2.42248665,58478.0,58477.0,0.71835158]
[1724060949979,2.97029465,58478.0,58477.0,0.35015058]
[1724060950188,0.0819,58458.0,58440.0,0.171113]
[1724060950427,0.0819,58458.0,58437.0,0.0788]
[1724060950428,0.17108,58452.0,58437.0,0.0788]
[1724060950644,0.99038124,58452.0,58437.0,0.0788]
[1724060950857,0.99038124,58452.0,58432.0,0.01]
[1724060950858,0.513258,58450.0,58449.0,0.0054832]
[1724060951059,1.25044185,58450.0,58449.0,0.0054832]
[1724060951300,1.8482985,58450.0,58449.0,0.0054832]
[1724060951505,1.44083856,58450.0,58449.0,0.0054832]
[1724060951932,1.80601056,58450.0,58449.0,0.0054832]
[1724060952345,1.80601056,58450.0,58432.0,0.01]
[1724060952346,1.481186,58446.0,58432.0,0.01]
[1724060952551,1.32627678,58446.0,58432.0,0.01]
[1724060952761,1.57650725,58446.0,58432.0,0.01]
[1724060953061,1.46331865,58446.0,58432.0,0.01]
[1724060953322,2.03503936,58446.0,58432.0,0.01]
[1724060953533,1.66331865,58446.0,58432.0,0.01]
[1724060953748,1.46331865,58446.0,58432.0,0.01]
[1724060954181,1.53137029,58446.0,58432.0,0.01]
[1724060954396,2.13657486,58446.0,58432.0,0.01]
[1724060954605,1.47731865,58446.0,58432.0,0.01]
[1724060954807,1.49131865,58446.0,58432.0,0.01]
[1724060955030,1.47731865,58446.0,58432.0,0.01]
[1724060955233,1.43931627,58446.0,58432.0,0.01]
[1724060955475,1.54032484,58446.0,58432.0,0.01]
[1724060955725,1.54032484,58446.0,58418.0,0.00822]
[1724060955726,0.171341,58363.0,58346.0,0.12785511]
[1724060955942,0.171341,58363.0,58326.0,0.10228409]
[1724060955943,0.001,58325.0,58300.0,0.77249589]
[1724060956166,0.001,58325.0,58300.0,0.20113338]
[1724060956167,0.001,58308.0,58300.0,0.20113338]
[1724060956374,0.945047,58301.0,58300.0,0.17113338]
[1724060956589,0.945047,58301.0,58300.0,0.00913338]
[1724060956590,1.32951264,58301.0,58300.0,0.00913338]
[1724060956842,1.34556126,58301.0,58300.0,0.00913338]
[1724060957049,0.83919852,58301.0,58300.0,0.00913338]
[1724060957273,0.20196613,58301.0,58300.0,0.00913338]
[1724060957475,0.20196613,58301.0,58294.0,0.0612304]
[1724060957476,0.11052013,58301.0,58294.0,0.0612304]
[1724060957684,0.10337194,58300.0,58294.0,0.0612304]
[1724060957897,0.05930873,58295.0,58294.0,0.0612304]
[1724060958114,0.09338047,58295.0,58294.0,0.0612304]
[1724060958342,0.09338047,58295.0,58294.0,0.0611904]
[1724060958570,0.045996,58295.0,58294.0,0.6511224]
[1724060958771,0.04737827,58304.0,58295.0,0.0604]
[1724060959001,0.04919109,58306.0,58300.0,0.514579]
[1724060959002,0.008,58301.0,58300.0,0.514579]
[1724060959214,0.05678751,58302.0,58297.0,0.171535]
[1724060959477,0.05693461,58301.0,58295.0,0.0604]
[1724060959704,0.05693461,58301.0,58294.0,0.0611904]
[1724060959705,0.001,58297.0,58294.0,0.0611904]
[1724060959902,0.07419231,58296.0,58294.0,0.0611904]
[1724060960125,0.01652213,58295.0,58294.0,0.0611904]
[1724060960328,0.07433946,58295.0,58294.0,0.0611904]
[1724060960556,0.05781733,58295.0,58294.0,0.25726643]
[1724060960797,0.05781733,58295.0,58294.0,0.0611904]
[1724060961425,0.05781733,58295.0,58294.0,0.4042784]
[1724060961630,0.05866559,58295.0,58294.0,0.5758224]
[1724060961836,0.00084826,58295.0,58294.0,0.9189104]
[1724060962046,0.00084826,58295.0,58294.0,0.2327344]
[1724060962888,0.00084826,58295.0,58294.0,0.9189104]
[1724060963094,0.00084826,58295.0,58294.0,0.9197334]
[1724060963309,0.00084826,58295.0,58294.0,1.2628214]
[1724060963725,0.00084826,58295.0,58294.0,1.2428214]
[1724060963952,0.04921364,58312.0,58311.0,0.171494]
[1724060964185,0.04921364,58312.0,58311.0,0.514482]
[1724060964186,0.10453041,58312.0,58311.0,0.514482]
[1724060964492,0.05531677,58312.0,58311.0,0.514482]
[1724060964662,0.001,58323.0,58309.0,0.0831]
[1724060964663,0.04924146,58323.0,58309.0,0.0831]
[1724060964917,0.04924146,58323.0,58260.0,0.1407351]
[1724060964918,0.601,58261.0,58260.0,0.1407351]
[1724060965126,0.601,58261.0,58252.0,0.51177509]
[1724060965127,1.805534,58254.0,58252.0,0.51177509]
[1724060965333,0.517993,58253.0,58252.0,0.45512978]
[1724060965552,0.517993,58253.0,58241.0,0.0094459]
[1724060965553,0.635,58242.0,58241.0,0.0094459]
[1724060965819,1.28204487,58242.0,58241.0,0.0094459]
[1724060966022,2.99368129,58242.0,58241.0,0.0094459]
[1724060966331,1.59108331,58241.0,58240.0,0.34370333]
[1724060966544,6.42611899,58241.0,58240.0,0.07447637]
[1724060966749,2.523924,58231.0,58230.0,0.13284654]
[1724060966957,5.01271698,58231.0,58223.0,0.0077536]
[1724060967181,1.5526,58226.0,58223.0,0.0077536]
[1724060967401,0.379601,58207.0,58206.0,0.0858575]
[1724060967612,2.70292609,58207.0,58206.0,0.0618575]
[1724060967839,2.15017398,58207.0,58206.0,0.0618575]
[1724060968052,2.15017398,58207.0,58160.0,0.57447509]
[1724060968053,0.002,58199.0,58178.0,0.0821]
[1724060968271,0.05914504,58195.0,58178.0,0.0821]
[1724060968483,0.04583856,58198.0,58178.0,0.2549828]
[1724060968484,0.001,58179.0,58178.0,0.2549828]
[1724060968693,0.01842058,58192.0,58186.0,0.0009988]
[1724060968921,0.001,58172.0,58171.0,0.1731048]
[1724060969151,0.002,58192.0,58182.0,0.171872]
[1724060969363,0.02936556,58195.0,58171.0,0.36538811]
[1724060969364,0.01647638,58191.0,58187.0,0.171858]
[1724060969573,0.01647733,58190.0,58182.0,0.0009988]
[1724060969780,0.01847733,58189.0,58185.0,0.171864]
[1724060969988,0.016477,58188.0,58186.0,0.171861]
[1724060970213,0.001,58187.0,58186.0,0.5165858]
[1724060970430,0.001,58189.0,58188.0,0.171856]
[1724060970658,0.0591555,58216.0,58174.0,0.0817]
[1724060970659,0.02937446,58204.0,58198.0,0.0009988]
[1724060970890,0.10888539,58206.0,58185.0,0.0637]
[1724060970891,0.002,58196.0,58185.0,0.0637]
[1724060971098,0.04972989,58206.0,58185.0,0.0637]
[1724060971099,0.04585401,58195.0,58193.0,0.0009988]
[1724060971323,0.0591555,58205.0,58196.0,0.0009988]
[1724060971571,0.002,58194.0,58185.0,0.0646988]
[1724060971836,0.04585009,58193.0,58185.0,0.0646988]
[1724060972037,0.09697597,58206.0,58191.0,0.0009988]
[1724060972038,0.04585009,58192.0,58191.0,0.0009988]
[1724060972236,0.04585009,58192.0,58191.0,0.5165408]
[1724060972499,0.04585009,58192.0,58191.0,0.171847]
[1724060972727,0.04585009,58192.0,58191.0,0.91189168]
[1724060972931,0.04990243,58203.0,58191.0,0.91189168]
[1724060972932,0.04990243,58203.0,58202.0,0.8600738]
[1724060973141,0.03038106,58212.0,58211.0,0.5163638]
[1724060973350,0.001,58224.0,58223.0,0.3445028]
[1724060973563,0.02938343,58224.0,58223.0,0.5162178]
[1724060973776,0.02938343,58224.0,58223.0,0.91895558]
[1724060973988,0.0591555,58244.0,58240.0,0.0009588]
[1724060974201,0.57093059,58246.0,58244.0,0.0009588]
[1724060974454,0.001,58266.0,58226.0,0.343483]
[1724060974455,0.0591555,58249.0,58247.0,0.17001586]
[1724060974652,0.24349961,58248.0,58247.0,0.59358086]
[1724060974895,0.24349961,58248.0,58247.0,0.93694586]
[1724060974896,0.21412148,58248.0,58247.0,0.93694586]
[1724060975081,0.24350248,58248.0,58247.0,0.93694586]
[1724060975510,0.24350248,58248.0,58247.0,1.50404335]
[1724060975725,0.24350248,58248.0,58247.0,0.34591586]
[1724060975961,0.75954148,58248.0,58247.0,1.3769]
[1724060976180,0.24450248,58248.0,58247.0,1.3769]
[1724060976385,0.030381,58248.0,58247.0,1.3769]
[1724060976602,0.029381,58248.0,58247.0,1.46608297]
[1724060977029,0.029381,58248.0,58247.0,1.9727058]
[1724060977233,0.029381,58248.0,58247.0,1.4576588]
[1724060977441,0.030381,58248.0,58247.0,1.4567]
[1724060977644,0.030381,58248.0,58247.0,1.3769]
[1724060978287,0.029381,58248.0,58247.0,1.548582]
[1724060978524,0.029381,58248.0,58247.0,1.8929058]
[1724060978724,0.02938039,58248.0,58247.0,2.2362708]
[1724060978941,0.02938039,58248.0,58247.0,2.6737358]
[1724060979149,0.001,58275.0,58261.0,0.0009588]
[1724060979364,0.51177509,58276.0,58263.0,0.0009588]
[1724060979365,0.001,58264.0,58263.0,0.0009588]
[1724060979584,0.001,58261.0,58260.0,0.0009588]
[1724060980022,0.001,58262.0,58260.0,0.0009588]
[1724060980240,0.0002,58279.0,58264.0,0.0009588]
[1724060980462,0.001,58277.0,58267.0,0.0009588]
[1724060980671,0.001,58278.0,58267.0,0.0009588]
[1724060980877,0.0002,58279.0,58265.0,0.343257]
[1724060980878,0.0012,58279.0,58270.0,0.0009588]
[1724060981102,0.0002,58279.0,58273.0,0.0009588]
[1724060981509,0.04826693,58278.0,58273.0,0.0009588]
[1724060981717,0.0002,58279.0,58276.0,0.0009588]
[1724060981718,0.04726693,58277.0,58276.0,0.0009588]
[1724060981956,0.04726693,58277.0,58267.0,0.0034319]
[1724060982163,0.001,58265.0,58264.0,1.3769]
[1724060982379,0.04826693,58265.0,58264.0,1.3769]
[1724060982598,0.26219913,58265.0,58264.0,1.3769]
[1724060982795,0.2611484,58265.0,58264.0,1.3778588]
[1724060983220,0.04724346,58265.0,58264.0,2.2360208]
[1724060983424,0.2611484,58265.0,58264.0,1.5494908]
[1724060983642,0.2611484,58265.0,58264.0,2.2360208]
[1724060983849,0.2611484,58265.0,58264.0,2.35555818]
[1724060984058,0.2611484,58265.0,58264.0,2.69882318]
[1724060984238,0.2611484,58265.0,58264.0,2.77502318]
[1724060984481,0.2611484,58265.0,58264.0,2.715624]
[1724060984687,0.2611484,58265.0,58264.0,2.656224]
[1724060984918,0.23175085,58265.0,58264.0,2.656224]
[1724060985150,0.0002,58279.0,58278.0,0.8589138]
[1724060985341,0.2139828,58279.0,58278.0,0.1725498]
[1724060985554,0.23044635,58279.0,58278.0,0.8589138]
[1724060985777,0.23044635,58279.0,58278.0,1.29795718]
[1724060985995,0.01666355,58279.0,58278.0,1.71733918]
[1724060986451,0.21374557,58298.0,58297.0,0.0009588]
[1724060986662,0.21374557,58298.0,58297.0,0.51311151]
[1724060986874,0.21374557,58298.0,58297.0,0.90749266]
[1724060987291,0.002,58313.0,58298.0,0.514596]
[1724060987521,0.21391585,58299.0,58298.0,0.514596]
[1724060987725,0.21391585,58299.0,58297.0,0.05131115]
[1724060987932,0.21391585,58299.0,58298.0,0.514596]
[1724060988140,0.21392409,58299.0,58298.0,0.590796]
[1724060988354,0.00012,58299.0,58298.0,1.276924]
[1724060988567,0.00012,58299.0,58298.0,1.1612524]
[1724060988775,0.21381594,58299.0,58298.0,1.1612524]
[1724060988981,0.00012,58299.0,58298.0,1.67587094]
[1724060989201,0.002,58313.0,58312.0,0.171491]
[1724060989437,0.002,58313.0,58312.0,0.857455]
[1724060989438,0.21567166,58313.0,58312.0,0.857455]
[1724060989651,0.21567166,58313.0,58312.0,1.200437]
[1724060989866,0.002,58313.0,58312.0,1.200437]
[1724060990068,0.002,58313.0,58312.0,1.94541734]
[1724060990272,0.002,58313.0,58312.0,1.60243534]
[1724060990891,0.002,58313.0,58312.0,1.25945334]
[1724060991096,0.009086,58320.0,58318.0,0.51442]
[1724060991308,0.009086,58320.0,58318.0,0.908809]
[1724060991309,0.21382525,58319.0,58318.0,0.908809]
[1724060991548,0.0002,58319.0,58318.0,1.251756]
[1724060991778,0.0002,58319.0,58318.0,0.565862]
[1724060991958,0.0002,58319.0,58318.0,0.908809]
[1724060992198,0.0002,58319.0,58318.0,0.565862]
[1724060992412,0.0002,58319.0,58318.0,0.908809]
[1724060992625,0.0002,58319.0,58318.0,1.17536354]
[1724060992840,0.04738595,58319.0,58318.0,1.95281054]
[1724060994773,0.009086,58320.0,58319.0,0.857352]
[1724060995022,0.009086,58320.0,58319.0,1.88634308]
[1724060995275,0.009086,58320.0,58319.0,1.54340208]
[1724060996327,0.0045671,58320.0,58319.0,1.88634308]
[1724060996510,0.0045671,58320.0,58319.0,1.90934308]
[1724060996797,0.0045671,58320.0,58309.0,0.1015]
[1724060997003,0.001,58317.0,58309.0,0.1015]
[1724060997425,0.0045671,58320.0,58302.0,0.51459154]
[1724060997426,0.0055671,58320.0,58311.0,0.342985]
[1724060997635,0.001,58316.0,58309.0,0.342998]
[1724060997857,0.0045671,58320.0,58310.0,0.0342998]
[1724060997858,0.001,58315.0,58310.0,0.0342998]
[1724060998067,0.001,58312.0,58303.0,0.343034]
[1724060998278,0.001,58312.0,58304.0,0.38075783]
[1724060998485,0.01640493,58311.0,58304.0,0.03773283]
[1724060998691,0.3,58316.0,58305.0,0.17155454]
[1724060998899,0.3,58316.0,58292.0,0.003]
[1724060998900,0.001,58312.0,58292.0,0.343095]
[1724060999115,0.001,58309.0,58300.0,0.171526]
[1724060999347,0.3,58316.0,58301.0,0.00342979]
[1724060999348,0.04569416,58308.0,58301.0,0.00342979]